[Event "Early-Titled-Tuesday-Blitz-February-20-2024"]
[Site "Chess.com"]
[Date "2024.02.20"]
[Round "9"]
[White "Sam_ChessMood"]
[Black "Polish_fighter3000"]
[Result "1/2-1/2"]
[WhiteElo "2947"]
[BlackElo "3055"]
[TimeControl "180+1"]
[EndTime "9:47:44 PST"]
[Termination "Game drawn by repetition"]

1. d4 {[%clk 0:03:00.1]} 1... Nf6 {[%clk 0:02:59.3]} 2. c4 {[%clk 0:03:00.4]}
2... e6 {[%clk 0:02:59.8]} 3. Nf3 {[%clk 0:02:59.4]} 3... d5 {[%clk 0:03:00.4]}
4. Nc3 {[%clk 0:02:58.9]} 4... Bb4 {[%clk 0:03:00.6]} 5. Bg5 {[%clk 0:02:53.6]}
5... dxc4 {[%clk 0:02:57.6]} 6. e4 {[%clk 0:02:48]} 6... b5 {[%clk 0:02:57]} 7.
a4 {[%clk 0:02:46.8]} 7... c5 {[%clk 0:02:55.6]} 8. axb5 {[%clk 0:02:47]} 8...
cxd4 {[%clk 0:02:56.2]} 9. Nxd4 {[%clk 0:02:29.6]} 9... h6 {[%clk 0:02:56.4]}
10. Bxf6 {[%clk 0:02:25.6]} 10... Qxf6 {[%clk 0:02:57.3]} 11. Bxc4 {[%clk
0:02:18.3]} 11... O-O {[%clk 0:02:55.8]} 12. O-O {[%clk 0:02:13.7]} 12... Bb7
{[%clk 0:02:47.3]} 13. Qb3 {[%clk 0:02:01.5]} 13... Bc5 {[%clk 0:02:44.8]} 14.
Nf3 {[%clk 0:02:01.2]} 14... Nd7 {[%clk 0:02:43.3]} 15. Be2 {[%clk 0:01:46]}
15... Rfd8 {[%clk 0:02:36.1]} 16. Na4 {[%clk 0:01:38.7]} 16... Bf8 {[%clk
0:02:29.2]} 17. Qe3 {[%clk 0:01:37]} 17... g5 {[%clk 0:02:18.1]} 18. h3 {[%clk
0:01:36]} 18... Rac8 {[%clk 0:01:33.7]} 19. Rac1 {[%clk 0:01:35.5]} 19... Nb6
{[%clk 0:01:29]} 20. Nxb6 {[%clk 0:01:15.1]} 20... axb6 {[%clk 0:01:29.9]} 21.
e5 {[%clk 0:01:06.8]} 21... Qf4 {[%clk 0:01:29.7]} 22. Qxf4 {[%clk 0:00:53.9]}
22... gxf4 {[%clk 0:01:30.6]} 23. Rfd1 {[%clk 0:00:52.2]} 23... Rxc1 {[%clk
0:00:32.5]} 24. Rxc1 {[%clk 0:00:51.8]} 24... Bxf3 {[%clk 0:00:28.4]} 25. Bxf3
{[%clk 0:00:50.9]} 25... Rd2 {[%clk 0:00:29.1]} 26. Rc7 {[%clk 0:00:22.5]} 26...
Bc5 {[%clk 0:00:28.2]} 27. Bh5 {[%clk 0:00:21.2]} 27... Bxf2+ {[%clk 0:00:25.5]}
28. Kf1 {[%clk 0:00:20.4]} 28... Bd4 {[%clk 0:00:11.1]} 29. Bxf7+ {[%clk
0:00:18.7]} 29... Kf8 {[%clk 0:00:11.6]} 30. Bxe6 {[%clk 0:00:15.9]} 30... Bxe5
{[%clk 0:00:10.4]} 31. Rd7 {[%clk 0:00:07.6]} 31... Rxb2 {[%clk 0:00:09.2]} 32.
Bc4 {[%clk 0:00:07.5]} 32... Rc2 {[%clk 0:00:08.8]} 33. Be2 {[%clk 0:00:06.8]}
33... Rc3 {[%clk 0:00:03.7]} 34. Kf2 {[%clk 0:00:06.2]} 34... Bf6 {[%clk
0:00:03.7]} 35. Rd3 {[%clk 0:00:05.4]} 35... Rxd3 {[%clk 0:00:02.9]} 36. Bxd3
{[%clk 0:00:05.9]} 36... Be7 {[%clk 0:00:03.4]} 37. Kf3 {[%clk 0:00:06.5]} 37...
Bd6 {[%clk 0:00:04.3]} 38. Ke4 {[%clk 0:00:07]} 38... Kg7 {[%clk 0:00:05]} 39.
Kd5 {[%clk 0:00:07.4]} 39... Bc5 {[%clk 0:00:05.7]} 40. Ke5 {[%clk 0:00:07.1]}
40... Be3 {[%clk 0:00:05.8]} 41. Ke4 {[%clk 0:00:06.9]} 41... Bd2 {[%clk
0:00:06]} 42. Kf3 {[%clk 0:00:06.7]} 42... Kf6 {[%clk 0:00:06.5]} 43. Bc4 {[%clk
0:00:06.4]} 43... Kg5 {[%clk 0:00:06.4]} 44. Be2 {[%clk 0:00:06.5]} 44... Kh4
{[%clk 0:00:06.2]} 45. Bf1 {[%clk 0:00:06.2]} 45... Bc1 {[%clk 0:00:06.5]} 46.
Be2 {[%clk 0:00:06.3]} 46... Bd2 {[%clk 0:00:06.9]} 47. Bd3 {[%clk 0:00:05.7]}
47... Bc1 {[%clk 0:00:07.4]} 48. Be2 {[%clk 0:00:04.2]} 48... Bd2 {[%clk
0:00:07.7]} 1/2-1/2

[Event "Early-Titled-Tuesday-Blitz-February-20-2024"]
[Site "Chess.com"]
[Date "2024.02.20"]
[Round "9"]
[White "BallottiLuca"]
[Black "Zallio"]
[Result "0-1"]
[WhiteElo "2369"]
[BlackElo "2170"]
[TimeControl "180+1"]
[EndTime "9:47:44 PST"]
[Termination "Zallio won on time"]

1. d4 {[%clk 0:03:00.9]} 1... d5 {[%clk 0:02:59.9]} 2. Nc3 {[%clk 0:03:01.8]}
2... Nf6 {[%clk 0:02:58.2]} 3. Bf4 {[%clk 0:03:02.5]} 3... e6 {[%clk 0:02:56.9]}
4. Nb5 {[%clk 0:03:01.7]} 4... Na6 {[%clk 0:02:56.5]} 5. e3 {[%clk 0:03:01.7]}
5... c6 {[%clk 0:02:56.3]} 6. Nc3 {[%clk 0:03:00.5]} 6... b5 {[%clk 0:02:55.3]}
7. Nf3 {[%clk 0:02:57.4]} 7... Bd6 {[%clk 0:02:53.8]} 8. Ne5 {[%clk 0:02:56.8]}
8... Bb7 {[%clk 0:02:41.9]} 9. Be2 {[%clk 0:02:55.7]} 9... O-O {[%clk 0:02:41]}
10. O-O {[%clk 0:02:55.8]} 10... Qc7 {[%clk 0:02:41.6]} 11. Bg3 {[%clk
0:02:45.5]} 11... Nb8 {[%clk 0:02:37]} 12. f4 {[%clk 0:02:29.9]} 12... Nbd7
{[%clk 0:02:29.3]} 13. a4 {[%clk 0:02:28.5]} 13... b4 {[%clk 0:02:26.7]} 14. Nb1
{[%clk 0:02:29.1]} 14... a5 {[%clk 0:02:26.7]} 15. Nd2 {[%clk 0:02:29.3]} 15...
c5 {[%clk 0:02:25.7]} 16. c3 {[%clk 0:02:28.7]} 16... c4 {[%clk 0:02:13.8]} 17.
h3 {[%clk 0:02:11.2]} 17... Rfe8 {[%clk 0:02:09.3]} 18. Bh2 {[%clk 0:02:10.3]}
18... Nf8 {[%clk 0:02:08.9]} 19. g4 {[%clk 0:02:09.8]} 19... Ng6 {[%clk
0:02:06.8]} 20. Qe1 {[%clk 0:02:09.6]} 20... Rac8 {[%clk 0:02:04.7]} 21. h4
{[%clk 0:02:07.3]} 21... Ne7 {[%clk 0:01:57.9]} 22. h5 {[%clk 0:01:59.4]} 22...
Nd7 {[%clk 0:01:48.1]} 23. h6 {[%clk 0:01:44.5]} 23... g6 {[%clk 0:01:47.1]} 24.
Qh4 {[%clk 0:01:26.9]} 24... Nc6 {[%clk 0:01:39.5]} 25. Kf2 {[%clk 0:01:03.1]}
25... Be7 {[%clk 0:01:34.9]} 26. Qh3 {[%clk 0:00:55.4]} 26... f6 {[%clk
0:01:34.6]} 27. Nxg6 {[%clk 0:00:49.6]} 27... hxg6 {[%clk 0:01:34.1]} 28. f5
{[%clk 0:00:39.2]} 28... Bd6 {[%clk 0:01:22.4]} 29. Rh1 {[%clk 0:00:36]} 29...
exf5 {[%clk 0:01:17.2]} 30. gxf5 {[%clk 0:00:34.6]} 30... g5 {[%clk 0:01:14.8]}
31. Qh5 {[%clk 0:00:32.7]} 31... Re7 {[%clk 0:01:07.5]} 32. Qg6+ {[%clk
0:00:32.1]} 32... Kh8 {[%clk 0:01:07.9]} 33. Nf3 {[%clk 0:00:19]} 33... Rg8
{[%clk 0:00:58.3]} 34. Qh5 {[%clk 0:00:19.2]} 34... g4 {[%clk 0:00:58.5]} 35.
Nh4 {[%clk 0:00:18.7]} 35... g3+ {[%clk 0:00:52.9]} 36. Kf1 {[%clk 0:00:16.7]}
36... Kh7 {[%clk 0:00:49.9]} 37. Ng6 {[%clk 0:00:17.4]} 37... Rxe3 {[%clk
0:00:42.5]} 38. Bg1 {[%clk 0:00:12.5]} 38... Ree8 {[%clk 0:00:38]} 39. Re1
{[%clk 0:00:10.2]} 39... Ne7 {[%clk 0:00:35.6]} 40. Rh2 {[%clk 0:00:06.5]} 40...
Nxf5 {[%clk 0:00:35.1]} 41. Rg2 {[%clk 0:00:04.7]} 41... Rxg6 {[%clk 0:00:34.3]}
42. Bg4 {[%clk 0:00:04.4]} 42... Rxe1+ {[%clk 0:00:32.6]} 43. Kxe1 {[%clk
0:00:05.3]} 43... Nf8 {[%clk 0:00:26.6]} 44. Bxf5 {[%clk 0:00:05.4]} 44... Qe7+
{[%clk 0:00:27.1]} 45. Kd1 {[%clk 0:00:05.3]} 45... Qf7 {[%clk 0:00:27.3]} 46.
Bxg6+ {[%clk 0:00:05.5]} 46... Qxg6 {[%clk 0:00:26.7]} 47. Qxg6+ {[%clk
0:00:03.2]} 47... Nxg6 {[%clk 0:00:26.7]} 48. Be3 {[%clk 0:00:03.6]} 48... f5
{[%clk 0:00:26.1]} 49. Ke2 {[%clk 0:00:03]} 49... f4 {[%clk 0:00:26.3]} 50. Bd2
{[%clk 0:00:03.6]} 50... Bc8 {[%clk 0:00:26.4]} 51. Kf3 {[%clk 0:00:03.1]} 51...
Nh4+ {[%clk 0:00:24.4]} 52. Ke2 {[%clk 0:00:02.1]} 52... Nxg2 {[%clk 0:00:24.7]}
0-1

[Event "Early-Titled-Tuesday-Blitz-February-20-2024"]
[Site "Chess.com"]
[Date "2024.02.20"]
[Round "9"]
[White "AniJak"]
[Black "TitarovVasiliYouTube"]
[Result "1-0"]
[WhiteElo "2364"]
[BlackElo "2510"]
[TimeControl "180+1"]
[EndTime "9:47:45 PST"]
[Termination "AniJak won on time"]

1. e4 {[%clk 0:03:00.9]} 1... c5 {[%clk 0:01:15.6]} 2. Nc3 {[%clk 0:03:00.4]}
2... a6 {[%clk 0:01:12.4]} 3. g3 {[%clk 0:03:00.5]} 3... b5 {[%clk 0:01:12.2]}
4. Bg2 {[%clk 0:03:00.9]} 4... Bb7 {[%clk 0:01:12.8]} 5. Nge2 {[%clk 0:03:00.6]}
5... Nc6 {[%clk 0:01:13.2]} 6. O-O {[%clk 0:03:00.2]} 6... e6 {[%clk 0:01:13.4]}
7. d4 {[%clk 0:02:59.6]} 7... cxd4 {[%clk 0:01:14.3]} 8. Nxd4 {[%clk 0:02:59.8]}
8... Nxd4 {[%clk 0:01:15]} 9. Qxd4 {[%clk 0:02:59.3]} 9... Ne7 {[%clk
0:01:15.7]} 10. Be3 {[%clk 0:02:56.5]} 10... Nc6 {[%clk 0:01:15.7]} 11. Qd2
{[%clk 0:02:55.4]} 11... Be7 {[%clk 0:01:15.8]} 12. Rad1 {[%clk 0:02:54.5]}
12... Ne5 {[%clk 0:01:14.6]} 13. b3 {[%clk 0:02:48.5]} 13... d6 {[%clk
0:01:11.2]} 14. h3 {[%clk 0:02:29.4]} 14... O-O {[%clk 0:01:06]} 15. f4 {[%clk
0:02:29.4]} 15... Nc6 {[%clk 0:01:03.2]} 16. a4 {[%clk 0:02:22.9]} 16... b4
{[%clk 0:01:01.5]} 17. Ne2 {[%clk 0:02:23]} 17... Rc8 {[%clk 0:01:01.1]} 18. c4
{[%clk 0:02:21.7]} 18... bxc3 {[%clk 0:01:00.1]} 19. Nxc3 {[%clk 0:02:21.8]}
19... Qa5 {[%clk 0:01:00.5]} 20. Na2 {[%clk 0:02:02.6]} 20... Qxd2 {[%clk
0:00:58.1]} 21. Rxd2 {[%clk 0:02:03.5]} 21... Na5 {[%clk 0:00:58]} 22. Rb1
{[%clk 0:01:57.5]} 22... Rc6 {[%clk 0:00:31]} 23. e5 {[%clk 0:01:53.2]} 23... d5
{[%clk 0:00:31.2]} 24. f5 {[%clk 0:01:53.7]} 24... Rfc8 {[%clk 0:00:30.8]} 25.
g4 {[%clk 0:01:28]} 25... Rc2 {[%clk 0:00:29.7]} 26. Rb2 {[%clk 0:01:27.5]}
26... Rxb2 {[%clk 0:00:21.6]} 27. Rxb2 {[%clk 0:01:27.1]} 27... Ba3 {[%clk
0:00:21.9]} 28. Rb1 {[%clk 0:01:15.6]} 28... Rc2 {[%clk 0:00:20.6]} 29. Bb6
{[%clk 0:01:03.4]} 29... Nc6 {[%clk 0:00:12.4]} 30. Ra1 {[%clk 0:00:41]} 30...
Nxe5 {[%clk 0:00:12.5]} 31. b4 {[%clk 0:00:23]} 31... Nd3 {[%clk 0:00:11.8]} 32.
b5 {[%clk 0:00:19.7]} 32... axb5 {[%clk 0:00:12.7]} 33. axb5 {[%clk 0:00:18.7]}
33... Nf4 {[%clk 0:00:13.3]} 34. Bh1 {[%clk 0:00:18.1]} 34... Nxh3+ {[%clk
0:00:13]} 35. Kf1 {[%clk 0:00:18]} 35... Nf4 {[%clk 0:00:11.4]} 36. Bd4 {[%clk
0:00:15.5]} 36... Rd2 {[%clk 0:00:07.4]} 37. Nc3 {[%clk 0:00:14.4]} 37... Bf8
{[%clk 0:00:05.7]} 38. Be3 {[%clk 0:00:13.2]} 38... Rd3 {[%clk 0:00:05.6]} 39.
Bxf4 {[%clk 0:00:13.5]} 39... Rxc3 {[%clk 0:00:06.2]} 40. Ra7 {[%clk 0:00:12.4]}
40... Rc4 {[%clk 0:00:04.5]} 41. Be5 {[%clk 0:00:09.8]} 41... Bc8 {[%clk
0:00:04.6]} 42. fxe6 {[%clk 0:00:09.6]} 42... fxe6 {[%clk 0:00:04]} 43. Ra8
{[%clk 0:00:10]} 43... Kf7 {[%clk 0:00:02]} 44. b6 {[%clk 0:00:10.4]} 44... Bd7
{[%clk 0:00:01.2]} 45. Ra7 {[%clk 0:00:10.4]} 1-0

[Event "Early-Titled-Tuesday-Blitz-February-20-2024"]
[Site "Chess.com"]
[Date "2024.02.20"]
[Round "9"]
[White "SirGerhard"]
[Black "dmosesov"]
[Result "0-1"]
[WhiteElo "2733"]
[BlackElo "2615"]
[TimeControl "180+1"]
[EndTime "9:47:46 PST"]
[Termination "dmosesov won by resignation"]

1. e4 {[%clk 0:02:59.9]} 1... Nf6 {[%clk 0:03:00.1]} 2. Nc3 {[%clk 0:02:58.4]}
2... d5 {[%clk 0:03:00.2]} 3. e5 {[%clk 0:02:58.4]} 3... d4 {[%clk 0:03:00.3]}
4. Nce2 {[%clk 0:02:55.6]} 4... Ng4 {[%clk 0:02:59.3]} 5. c3 {[%clk 0:02:41.6]}
5... d3 {[%clk 0:02:26.7]} 6. Nf4 {[%clk 0:02:40.8]} 6... Nxe5 {[%clk
0:02:26.2]} 7. Nf3 {[%clk 0:02:35.2]} 7... Nbc6 {[%clk 0:02:16.2]} 8. Nxe5
{[%clk 0:02:15.6]} 8... Nxe5 {[%clk 0:02:17.1]} 9. Qa4+ {[%clk 0:02:15.2]} 9...
c6 {[%clk 0:01:54.7]} 10. Qe4 {[%clk 0:02:12.2]} 10... Ng6 {[%clk 0:01:49.2]}
11. Nxd3 {[%clk 0:02:01.1]} 11... e5 {[%clk 0:01:32.1]} 12. h4 {[%clk
0:01:28.2]} 12... f5 {[%clk 0:00:53.9]} 13. Qe3 {[%clk 0:01:24.9]} 13... e4
{[%clk 0:00:42.4]} 14. h5 {[%clk 0:01:24.4]} 14... Ne7 {[%clk 0:00:42.6]} 15.
Nf4 {[%clk 0:01:24.1]} 15... Nd5 {[%clk 0:00:37.4]} 16. Qg3 {[%clk 0:01:18.4]}
16... Nxf4 {[%clk 0:00:31]} 17. Qxf4 {[%clk 0:01:18.5]} 17... Bd6 {[%clk
0:00:31.7]} 18. Qe3 {[%clk 0:01:18.2]} 18... Qe7 {[%clk 0:00:28.4]} 19. d4
{[%clk 0:01:15.2]} 19... f4 {[%clk 0:00:25.4]} 20. Qe2 {[%clk 0:01:00.9]} 20...
Bd7 {[%clk 0:00:20.4]} 21. Bd2 {[%clk 0:00:57.4]} 21... O-O-O {[%clk 0:00:20.5]}
22. O-O-O {[%clk 0:00:57.8]} 22... Rde8 {[%clk 0:00:19.9]} 23. Be1 {[%clk
0:00:50.6]} 23... Rhf8 {[%clk 0:00:19.7]} 24. Qc4 {[%clk 0:00:48.2]} 24... Be6
{[%clk 0:00:19.2]} 25. Qa4 {[%clk 0:00:47.7]} 25... Kb8 {[%clk 0:00:19.2]} 26.
Be2 {[%clk 0:00:46.3]} 26... Qf7 {[%clk 0:00:17.4]} 27. Kb1 {[%clk 0:00:45.3]}
27... f3 {[%clk 0:00:17]} 28. gxf3 {[%clk 0:00:33.2]} 28... exf3 {[%clk
0:00:17.9]} 29. Bd3 {[%clk 0:00:33.5]} 29... Bf5 {[%clk 0:00:18.2]} 30. Qc2
{[%clk 0:00:33.4]} 30... Re2 {[%clk 0:00:17.4]} 31. Bxf5 {[%clk 0:00:28.9]}
31... Rxc2 {[%clk 0:00:15.4]} 32. Bxc2 {[%clk 0:00:28.7]} 32... h6 {[%clk
0:00:15.3]} 33. Bd2 {[%clk 0:00:25.3]} 33... Bf4 {[%clk 0:00:15]} 34. Rhg1
{[%clk 0:00:19.8]} 34... Bxd2 {[%clk 0:00:14.4]} 35. Rxd2 {[%clk 0:00:20.3]}
35... Qxh5 {[%clk 0:00:13.6]} 36. Rxg7 {[%clk 0:00:18.2]} 36... a5 {[%clk
0:00:12.2]} 37. a4 {[%clk 0:00:18]} 37... Re8 {[%clk 0:00:12.3]} 38. Bd3 {[%clk
0:00:14.9]} 38... Re1+ {[%clk 0:00:11.4]} 39. Ka2 {[%clk 0:00:15.3]} 39... Qd5+
{[%clk 0:00:10.1]} 40. c4 {[%clk 0:00:15.4]} 40... Qxd4 {[%clk 0:00:07.1]} 41.
Rf7 {[%clk 0:00:14.9]} 41... Re2 {[%clk 0:00:04.5]} 42. Bxe2 {[%clk 0:00:11.8]}
42... Qxd2 {[%clk 0:00:04.3]} 43. Bxf3 {[%clk 0:00:12.2]} 43... Qxf2 {[%clk
0:00:04.7]} 44. Bh5 {[%clk 0:00:08]} 44... Qc5 {[%clk 0:00:03.8]} 45. Rf4 {[%clk
0:00:07.3]} 45... Qxh5 {[%clk 0:00:03.1]} 46. Rf8+ {[%clk 0:00:07.6]} 46... Ka7
{[%clk 0:00:03.5]} 47. Rf4 {[%clk 0:00:08.5]} 47... Qg5 {[%clk 0:00:03.8]} 48.
Re4 {[%clk 0:00:08.7]} 48... h5 {[%clk 0:00:04.5]} 49. Re8 {[%clk 0:00:08.6]}
49... h4 {[%clk 0:00:05.1]} 50. Rh8 {[%clk 0:00:09.5]} 50... Qg4 {[%clk
0:00:05.3]} 51. Kb3 {[%clk 0:00:10.1]} 51... h3 {[%clk 0:00:05.9]} 52. c5 {[%clk
0:00:10.1]} 52... Qg3+ {[%clk 0:00:06.6]} 53. Kc4 {[%clk 0:00:10.3]} 53... h2
{[%clk 0:00:07.3]} 0-1

[Event "Early-Titled-Tuesday-Blitz-February-20-2024"]
[Site "Chess.com"]
[Date "2024.02.20"]
[Round "9"]
[White "Genghis_K"]
[Black "BogdanDeac"]
[Result "0-1"]
[WhiteElo "2932"]
[BlackElo "3054"]
[TimeControl "180+1"]
[EndTime "9:47:47 PST"]
[Termination "BogdanDeac won on time"]

1. e4 {[%clk 0:02:55.2]} 1... e5 {[%clk 0:03:00.1]} 2. Nf3 {[%clk 0:02:54.4]}
2... Nc6 {[%clk 0:03:00.7]} 3. d4 {[%clk 0:02:54.5]} 3... exd4 {[%clk
0:03:00.4]} 4. Nxd4 {[%clk 0:02:55.4]} 4... Nf6 {[%clk 0:03:00]} 5. Nxc6 {[%clk
0:02:55.8]} 5... bxc6 {[%clk 0:03:00.9]} 6. Bd3 {[%clk 0:02:56.5]} 6... d6
{[%clk 0:02:57.8]} 7. O-O {[%clk 0:02:53.9]} 7... g6 {[%clk 0:02:57.6]} 8. Qe2
{[%clk 0:02:35.4]} 8... Qe7 {[%clk 0:02:38.7]} 9. Re1 {[%clk 0:02:33]} 9... Bg7
{[%clk 0:02:35.9]} 10. e5 {[%clk 0:02:32.5]} 10... dxe5 {[%clk 0:02:35.8]} 11.
Qxe5 {[%clk 0:02:32.8]} 11... Qxe5 {[%clk 0:02:36]} 12. Rxe5+ {[%clk 0:02:33.2]}
12... Be6 {[%clk 0:02:36.7]} 13. Rc5 {[%clk 0:02:20.8]} 13... O-O-O {[%clk
0:01:16.7]} 14. Rxc6 {[%clk 0:02:12.4]} 14... Rhe8 {[%clk 0:01:16.3]} 15. Nc3
{[%clk 0:02:00.8]} 15... Rxd3 {[%clk 0:00:54.1]} 16. Bf4 {[%clk 0:00:52.7]}
16... Rd7 {[%clk 0:00:52.6]} 17. Nb5 {[%clk 0:00:52.5]} 17... Nd5 {[%clk
0:00:52.4]} 18. Nd6+ {[%clk 0:00:46.7]} 18... Rxd6 {[%clk 0:00:52.2]} 19. Bxd6
{[%clk 0:00:47.2]} 19... Kd7 {[%clk 0:00:51.4]} 20. Ra6 {[%clk 0:00:47]} 20...
cxd6 {[%clk 0:00:51.1]} 21. Rxa7+ {[%clk 0:00:47.3]} 21... Nc7 {[%clk
0:00:51.4]} 22. c3 {[%clk 0:00:47.5]} 22... Rb8 {[%clk 0:00:49.5]} 23. b3 {[%clk
0:00:43.9]} 23... Kc6 {[%clk 0:00:46.8]} 24. Rc1 {[%clk 0:00:41.9]} 24... Nb5
{[%clk 0:00:44.5]} 25. Ra6+ {[%clk 0:00:40]} 25... Rb6 {[%clk 0:00:43.5]} 26.
Rxb6+ {[%clk 0:00:38.7]} 26... Kxb6 {[%clk 0:00:44]} 27. c4 {[%clk 0:00:38.9]}
27... Nc3 {[%clk 0:00:43.9]} 28. Rc2 {[%clk 0:00:38.9]} 28... Kc5 {[%clk
0:00:41.6]} 29. Rd2 {[%clk 0:00:31.2]} 29... Be5 {[%clk 0:00:35.8]} 30. g3
{[%clk 0:00:31.2]} 30... g5 {[%clk 0:00:35.7]} 31. f3 {[%clk 0:00:25.3]} 31...
Kb4 {[%clk 0:00:29.7]} 32. Kf2 {[%clk 0:00:25]} 32... f5 {[%clk 0:00:29.9]} 33.
h4 {[%clk 0:00:22.6]} 33... h6 {[%clk 0:00:22.2]} 34. hxg5 {[%clk 0:00:12.6]}
34... hxg5 {[%clk 0:00:22.3]} 35. Rd3 {[%clk 0:00:11.6]} 35... Nxa2 {[%clk
0:00:10.2]} 36. Rd1 {[%clk 0:00:09.1]} 36... Nc3 {[%clk 0:00:06.7]} 37. Re1
{[%clk 0:00:09.6]} 37... Kxb3 {[%clk 0:00:06.4]} 38. c5 {[%clk 0:00:09.6]} 38...
Bd5 {[%clk 0:00:04.8]} 39. cxd6 {[%clk 0:00:08.2]} 39... Bxd6 {[%clk 0:00:05.7]}
40. Re8 {[%clk 0:00:08.4]} 40... g4 {[%clk 0:00:05.4]} 41. fxg4 {[%clk
0:00:03.9]} 41... fxg4 {[%clk 0:00:06.3]} 42. Rd8 {[%clk 0:00:04.6]} 42... Bc5+
{[%clk 0:00:06.6]} 43. Kf1 {[%clk 0:00:04]} 43... Bf3 {[%clk 0:00:07]} 44. Rb8+
{[%clk 0:00:02.9]} 44... Kc4 {[%clk 0:00:07.3]} 45. Rd8 {[%clk 0:00:03.8]} 45...
Ne4 {[%clk 0:00:07.5]} 46. Ke1 {[%clk 0:00:02.1]} 46... Nxg3 {[%clk 0:00:07.7]}
47. Rd4+ {[%clk 0:00:01.9]} 47... Bxd4 {[%clk 0:00:07.4]} 0-1

[Event "Early-Titled-Tuesday-Blitz-February-20-2024"]
[Site "Chess.com"]
[Date "2024.02.20"]
[Round "9"]
[White "Jamal-Jamal-Jamal"]
[Black "ural58"]
[Result "0-1"]
[WhiteElo "2270"]
[BlackElo "2496"]
[TimeControl "180+1"]
[EndTime "9:47:47 PST"]
[Termination "ural58 won by checkmate"]

1. d4 {[%clk 0:03:00.9]} 1... d5 {[%clk 0:02:58.5]} 2. f3 {[%clk 0:03:01]} 2...
e5 {[%clk 0:02:55.2]} 3. dxe5 {[%clk 0:02:54.2]} 3... Nc6 {[%clk 0:02:52.7]} 4.
e4 {[%clk 0:02:51.1]} 4... dxe4 {[%clk 0:02:42.1]} 5. Qxd8+ {[%clk 0:02:51]}
5... Nxd8 {[%clk 0:02:42.2]} 6. fxe4 {[%clk 0:02:50.9]} 6... Bc5 {[%clk
0:02:38.1]} 7. Nc3 {[%clk 0:02:47.2]} 7... c6 {[%clk 0:02:36.9]} 8. Bf4 {[%clk
0:02:41.8]} 8... Ne6 {[%clk 0:02:36.2]} 9. Bg3 {[%clk 0:02:38]} 9... Be3 {[%clk
0:02:19.2]} 10. Nf3 {[%clk 0:02:25.1]} 10... Ne7 {[%clk 0:02:15.9]} 11. Bc4
{[%clk 0:02:13.3]} 11... O-O {[%clk 0:02:15.5]} 12. Ke2 {[%clk 0:02:10.5]} 12...
Bh6 {[%clk 0:02:09.4]} 13. Rad1 {[%clk 0:02:07.6]} 13... Ng6 {[%clk 0:02:07.3]}
14. Rhe1 {[%clk 0:02:01.5]} 14... b5 {[%clk 0:02:04.1]} 15. Bb3 {[%clk
0:01:58.7]} 15... a5 {[%clk 0:01:55.1]} 16. a4 {[%clk 0:01:52.2]} 16... b4
{[%clk 0:01:54.9]} 17. Nb1 {[%clk 0:01:45.4]} 17... Ba6+ {[%clk 0:01:54.8]} 18.
Kf2 {[%clk 0:01:42.5]} 18... Rad8 {[%clk 0:01:50.7]} 19. Nbd2 {[%clk 0:01:39.3]}
19... Nc5 {[%clk 0:01:49.9]} 20. Nc4 {[%clk 0:01:19.4]} 20... Bxc4 {[%clk
0:01:47.4]} 21. Bxc4 {[%clk 0:01:18.9]} 21... Nxa4 {[%clk 0:01:47.6]} 22. b3
{[%clk 0:01:12]} 22... Nc3 {[%clk 0:01:46.8]} 23. Ra1 {[%clk 0:01:03.7]} 23...
Ra8 {[%clk 0:01:43.4]} 24. h4 {[%clk 0:00:52.9]} 24... Rfe8 {[%clk 0:01:42.4]}
25. Kg1 {[%clk 0:00:39.4]} 25... Bf4 {[%clk 0:01:40.4]} 26. Bxf4 {[%clk
0:00:36.7]} 26... Nxf4 {[%clk 0:01:41.3]} 27. Ng5 {[%clk 0:00:28.6]} 27... Ne6
{[%clk 0:01:29.2]} 28. Nxe6 {[%clk 0:00:27]} 28... fxe6 {[%clk 0:01:29.4]} 29.
Rf1 {[%clk 0:00:22.7]} 29... Nxe4 {[%clk 0:01:27.5]} 30. Rf4 {[%clk 0:00:21.6]}
30... Ng3 {[%clk 0:01:16.7]} 31. Rd4 {[%clk 0:00:18.2]} 31... Re7 {[%clk
0:01:12]} 32. Rd6 {[%clk 0:00:16.3]} 32... Kf7 {[%clk 0:01:10.6]} 33. Rxc6
{[%clk 0:00:15.9]} 33... Nf5 {[%clk 0:01:06.1]} 34. Rf1 {[%clk 0:00:15.3]} 34...
Ke8 {[%clk 0:00:59.7]} 35. Bxe6 {[%clk 0:00:13.7]} 35... Nd4 {[%clk 0:00:55.6]}
36. Bd5 {[%clk 0:00:13.1]} 36... Rd8 {[%clk 0:00:53.7]} 37. Rd6 {[%clk
0:00:11.6]} 37... Rxe5 {[%clk 0:00:46.2]} 38. Rxd8+ {[%clk 0:00:10.7]} 38...
Kxd8 {[%clk 0:00:46.5]} 39. Bc4 {[%clk 0:00:11]} 39... Nxc2 {[%clk 0:00:44]} 40.
Rf7 {[%clk 0:00:11.5]} 40... Ne3 {[%clk 0:00:41.9]} 41. Rxg7 {[%clk 0:00:09.6]}
41... Nxc4 {[%clk 0:00:41.4]} 42. bxc4 {[%clk 0:00:10.5]} 42... b3 {[%clk
0:00:36]} 43. Rxh7 {[%clk 0:00:09.7]} 43... b2 {[%clk 0:00:35.4]} 44. Rb7 {[%clk
0:00:09.3]} 44... Re1+ {[%clk 0:00:35.3]} 45. Kf2 {[%clk 0:00:08.8]} 45... b1=Q
{[%clk 0:00:36.2]} 46. Rxb1 {[%clk 0:00:09.2]} 46... Rxb1 {[%clk 0:00:36.1]} 47.
g4 {[%clk 0:00:09.8]} 47... a4 {[%clk 0:00:31.5]} 48. h5 {[%clk 0:00:09.5]}
48... a3 {[%clk 0:00:29]} 49. g5 {[%clk 0:00:09.6]} 49... a2 {[%clk 0:00:27.9]}
50. g6 {[%clk 0:00:10.2]} 50... a1=Q {[%clk 0:00:26.7]} 51. h6 {[%clk
0:00:10.9]} 51... Qf6+ {[%clk 0:00:25.9]} 52. Kg2 {[%clk 0:00:09.4]} 52... Rf1
{[%clk 0:00:23.9]} 53. g7 {[%clk 0:00:06.1]} 53... Qf3+ {[%clk 0:00:24.8]} 54.
Kh2 {[%clk 0:00:06]} 54... Rh1# {[%clk 0:00:25.6]} 0-1